{"text_format":"1","workbook":"xlsx","n_sheets":6,"sheets":["1. INSTRUCTIONS","2. Coûts admissibles & non adm.","3. Budget - Plan de travail","4. Sources de financement","5. Tableau paiements & rapports","6. Demandes de remboursement"],"not_rendered":{"charts":0,"images":0,"macros":1,"external_links":0,"defined_names":13,"comments":0,"pivot_tables":0},"unopened":[],"bounds":{"document_bytes":16777216,"sheet_cells":100000,"rows_first":2000,"rows_last":500,"rows_between":2000,"halvings":0,"cell_chars":16384,"cell_head_chars":4096},"cells_cut":0,"cells_raw":0,"read":"whole","date_system":"1900"}

{"sheet":"1. INSTRUCTIONS","index":0,"n_rows":11,"n_cols":1,"rows_kept":11,"cut":false,"hidden":false,"merged":[]}
["PLAN DE TRAVAIL ET BUDGET – Plan, étude ou projet pilote du Fonds municipal vert"]
["INSTRUCTIONS – VEUILLEZ EN PRENDRE CONNAISSANCE AVANT DE REMPLIR LE FORMULAIRE"]
["Macros : Le présent modèle utilise des « macros », qui sont des groupes d'instructions programmées dont l'objectif principal est d'automatiser les tâches. Les macros déclenchent les clauses appropriées dans ce plan de travail et ce budget. Pour utiliser toutes les fonctionnalités de ce modèle, vous devez activer les macros dans Excel. \nSauvegarde du modèle : Il est essentiel de sauvegarder le modèle correctement, faute de quoi les informations exactes pourraient ne pas être enregistrées. Au moment de sauvegarder le modèle, assurez-vous de sélectionner « Classeur Excel (prenant en charge les macros) » (*.xlsm)."]
["Pour présenter une demande au Fonds municipal vert (FMV), vous devez lire, comprendre et remplir les onglets 1 à 4. Il vous faut mettre à jour les onglets 4 à 6 tout au long de l'initiative et à chaque contribution demandée au FMV. Notez que les onglets 5 et 6 vous seront fournis uniquement une fois que le financement de votre demande aura été approuvé, car le FMV utilise ces onglets pour suivre les progrès réalisés par votre initiative."]
["▪ ÉTAPE : Une étape est un livrable important témoignant de l'achèvement d'une ou de plusieurs tâches. Les versements seront effectués lorsque certaines étapes auront été franchies. Exemples :  \n            ▪ Rapports, comme ceux établis dans le cadre d'un processus opérationnel, rapports de gestion, rapports du conseil municipal ou rapports d'étape officiels  \n            ▪ Dessins de conception \n            ▪ Listes des participants aux ateliers\n            ▪ Procès-verbaux de réunions du conseil municipal ou de la direction\n            ▪ Articles de presse\n            ▪ Certificats de formation \n            ▪ Approbations provinciales ou municipales (p. ex., approbations environnementales, certificats d'exploitation)\n"]
["▪ DATES DE DÉBUT ET DE FIN : Indiquez les dates de début et de fin estimatives pour chaque étape. Remarque : Dans la plupart des cas, la Fédération canadienne des municipalités (FCM) s'attend à ce que les initiatives financées soient terminées dans les trois années suivant la date d'approbation. Il sera fait mention de cette exigence dans votre contrat avec la FCM.\n"]
["▪ TÂCHE : Une tâche est définie comme étant une activité unique entreprise en vue de mener à bien une étape. Pour chaque tâche énoncée, veuillez fournir une description de ce qu'implique la tâche et préciser qui la mènera à bien en plus de fournir une estimation du coût. En général, les tâches individuelles devraient coûter moins de 50 000 $. Les coûts devraient être ventilés en deux catégories : les coûts admissibles et les coûts non admissibles. Reportez-vous à l'onglet 2 (Coûts admissibles et non admissibles) pour obtenir la liste des coûts qui peuvent être partiellement remboursés par la FCM."]
["▪ COÛTS ÉVENTUELS : Les coûts éventuels sont des coûts admissibles, mais qui ne peuvent figurer dans une section séparée du budget. Répartissez les coûts éventuels dans les sections adéquates du budget s'il y a lieu et donnez une explication concernant le pourcentage ou le montant de ces coûts dans la section « Coûts éventuels » sous le tableau du plan de travail."]
["▪ TAXES : Vous pouvez inclure dans votre budget la partie des taxes pour laquelle votre organisation n'est pas admissible à un remboursement (provincial, territorial ou fédéral). Allouez ce montant aux tâches adéquates, s'il y a lieu. "]
["▪ SUPPRIMER DES LIGNES : Les lignes ne peuvent pas être supprimées en raison de la structure du modèle. Laissez les lignes supplémentaires vides."]
["▪ INFORMATION À METTRE À JOUR À CHAQUE DEMANDE DE CONTRIBUTION : Veuillez noter que les onglets 4 à 6 doivent être mis à jour (au besoin) chaque fois que vous présentez une demande de contribution au FMV. "]

{"sheet":"2. Coûts admissibles & non adm.","index":1,"n_rows":47,"n_cols":3,"rows_kept":47,"cut":false,"hidden":false,"merged":[]}
[null,"                                                                            Tableau des coûts admissibles et non admissibles"]
["                  Si votre demande est approuvée, les dépenses qui sont admissibles à un remboursement partiel ou à une contribution anticipée doivent : "]
["             – être engagées après la date à laquelle la FCM a reçu la demande (coûts de rédaction de la demande engagés jusqu'à 90 jours avant la réception de la demande par la FCM);"]
["             – être facturées directement à votre organisation;"]
["             – constituer un élément intégral et essentiel de l'initiative et être indispensable pour que l'objectif environnemental soit atteint;"]
["             – être raisonnables et réellement engagées conformément aux normes applicables dans l'industrie."]
["La FCM se réserve le droit de vérifier à une date ultérieure les états financiers ou les dépenses engagées. "]
["Veuillez conserver pendant au moins sept ans les comptes et documents financiers, par exemple, les contrats, les factures, les états financiers, les reçus, feuilles de temps et pièces."]
["Les documents financiers, notamment les coûts de la main-d'œuvre, doivent être documentés conformément aux normes d'audit et permettre la vérification de l'admissibilité des coûts et du niveau d'effort."]
["Catégorie de coûts","Coûts admissibles","Coûts non admissibles"]
["                                                                               Section A : Coûts engagés avant la date de réception de la demande par la FCM"]
["1) Avant la demande","Coûts engagés jusqu'à 90 jours avant la date de réception de la demande pour rédiger la demande au FMV","Tous les autres coûts engagés avant la date de réception de la demande"]
["                                                                             Section B : Coûts engagés après la date de réception de la demande par la FCM"]
["2)  Frais d'administration","Frais d'administration directement liés au projet et engagés à cette fin, par exemple :","Locaux à bureaux, fournitures et dépenses générales engagées dans le cours normal des activités"]
[null,"•         frais de communication (p. ex., appels interurbains) "]
[null,"•         certifications ou permis requis pour le projet"]
[null,"•       impression ou photocopie par des fournisseurs de l'extérieur"]
[null,"•         acquisition de documents utilisés exclusivement pour le projet"]
[null,"•         traduction de documents"]
["3)  Publicité","Frais de publicité essentiels pour faire connaître le projet au public et frais d'évaluation du projet, par exemple : ","•         Frais de publicité engagés à des fins de sensibilisation générale du public ou de publicité qui découlent des activités courantes ou d'autres activités opérationnelles et qui ne constituent pas une exigence particulière dans le cadre du projet"]
[null,"•         frais d'élaboration de la publicité","•         Articles promotionnels"]
[null,"•         frais pour la diffusion aux médias"]
[null,"•         élaboration d'un site Web"]
[null,"•        sondages auprès du public"]
["4)  Dépenses en immobilisations (projets pilotes uniquement)","Location ou achat d'équipement ou de biens indispensables pour mener à bien l'activité à petite échelle, entre autres les coûts afférents aux systèmes spécialisés (matériel et logiciels), les coûts de construction, les matériaux, les coûts de rénovation et de modernisation et les frais d'installation","•       Tout coût d'investissement important"]
[null,null,"•         Achat ou location d'un bien immobilier"]
["5)  Location d'équipement","Location d'outils ou d'équipement se rapportant au projet","Location d'outils ou d'équipement dans le cadre des activités courantes ou d'autres activités opérationnelles"]
["6)  En nature","s.o.","Tout produit ou service reçu sous forme de don ou de contribution en nature"]
["7)  Réunions et assemblées publiques","Coûts liés aux réunions et aux assemblées publiques dans le cadre desquelles on communique au public de l'information sur le projet et on recueille des commentaires, par exemple :","Toute dépense d'accueil, par exemple :"]
[null,"•         location de locaux","•         aliments, boissons et alcool"]
[null,"•         location de matériel audiovisuel","•         prix de présence"]
[null,null,"•         divertissement"]
[null,null,"•         décorations, fleurs, milieux de table, etc."]
["8)  Services","Honoraires des consultants professionnels et techniques et des entrepreneurs","Coûts des études techniques, des audits et des études de faisabilité pour lesquels le gouvernement du Canada fournit ou s'engage à fournir une subvention ou une contribution"]
["9)   Rémunération du personnel","Taux journaliers effectivement versés par le bénéficiaire admissible à ses employés (y compris les employés permanents et à contrat) au Canada pour le temps réellement consacré à la mise en œuvre du projet. Le taux journalier par employé comprend les coûts suivants :","•         Contribution de services en nature"]
[null,"•         salaires directs : montant réel et justifiable payé par le bénéficiaire admissible à ses employés conformément à son échelle salariale à titre de rémunération régulière, excluant la rémunération des heures supplémentaires et les primes","•         Heures supplémentaires                                                                                                            "]
[null,"•         avantages sociaux, conformément aux politiques du bénéficiaire admissible, comme suit :","•         Primes et rémunération au rendement"]
[null,"a)       avantages sociaux liés aux congés payés (calculés au prorata du pourcentage annuel des heures consacrées à la mise en œuvre du projet) : nombre de jours autorisé devant être payé par le bénéficiaire admissible pour les absences payables (jours fériés et congés annuels)","•         Avantages sociaux, comme les congés de maladie, les congés de maternité, les congés parentaux, le régime de pensions et tout autre avantage social ne figurant pas sur la liste des avantages admissibles"]
[null,"b)       avantages sociaux payés : montant réel payé par le bénéficiaire admissible au titre des avantages sociaux payés (calculé au prorata du pourcentage annuel des heures réellement consacrées à la mise en œuvre du projet); ceci inclut la contribution du bénéficiaire admissible à l'assurance-emploi et au régime d'indemnisation des victimes d'accidents du travail (le cas échéant), l'assurance médicale, l'assurance-vie collective et d'autres prestations obligatoires du gouvernement","•         Coûts liés à des activités courantes et d'autres activités opérationnelles régulières qui ne constituent pas une exigence particulière dans le cadre du projet"]
[null,"Remarque : Pour les entités privées (à but lucratif) uniquement, déterminées par la FCM, le montant de la rémunération totale des employés ne peut être supérieur à 10 % des coûts admissibles du projet.","•         Salaire du personnel pendant qu'il suit une formation ou participe à des activités d'apprentissage"]
[null,null,"•         Frais d'adhésion à une association professionnelle ou cotisations syndicales"]
[null,null,"•         Rémunération du personnel pour laquelle la  FCM fournit ou s'engage à fournir une subvention ou une contribution. Cela comprend les subventions de soutien au personnel œuvrant contre les changements climatiques offertes dans le cadre du programme Municipalités pour l’innovation climatique (MIC) de la FCM"]
["10)    Fournitures et matériaux","Fournitures et matériaux expressément requis pour entreprendre le projet","Coûts liés aux activités courantes ou à d'autres activités opérationnelles qui ne constituent pas une exigence particulière du projet"]
["11)    Frais de transport, d'expédition et de messageries","Frais de transport pour la livraison du matériel et la prestation des services indispensables au projet ","Toute dépense en  matière de transport se rapportant aux activités courantes ou à d'autres activités opérationnelles"]
["12)    Déplacements et hébergement","Frais de déplacement et frais connexes engagés par vous ou par les consultants dans la mesure où les taux de voyage et d'hébergement sont conformes aux lignes directrices du Conseil du Trésor du Canada","•         Déplacements et dépenses connexes d'un partenaire du projet"]
[null,null,"•         Déplacements, hébergements et frais engagés pour participer à des conférences, des missions, des foires commerciales, etc."]
["13)    Taxes","Portion des taxes pour laquelle votre organisation n'est pas admissible à un remboursement","Portion des taxes pour laquelle votre organisation est admissible à un remboursement (par le gouvernement provincial, territorial ou fédéral)"]

{"sheet":"3. Budget - Plan de travail","index":2,"n_rows":171,"n_cols":8,"rows_kept":171,"cut":false,"hidden":false,"merged":[]}
["                                                                                                                                                                                            PLAN DE TRAVAIL ET BUDGET "]
["Demandeur principal :",null,null,null,"Type de demandeur (en sélectionner un)"]
["Titre du projet :",null,null,null,"Type de projet (en sélectionner un)"]
["Étapes","Date de début ","Date de fin ","Catégorie de coûts (en sélectionner une)","Coûts admissibles ($)","Coûts non admissibles ($)","Coût total ($)"]
["Étape 1 : Veuillez indiquer votre première étape","mm/aaaa","mm/aaaa"]
["Description de l'étape : [Dans cette case, veuillez décrire l'étape ou le livrable principal qui témoigne de l'achèvement de cette étape]"]
["[Ajouter la description de la tâche ici]",null,null,null,null,null,{"$f":"E7+F7","v":0}]
["[Ajouter la description de la tâche ici]",null,null,null,null,null,{"$f":"E8+F8","v":0}]
["[Ajouter la description de la tâche ici]",null,null,null,null,null,0]
["[Ajouter la description de la tâche ici]",null,null,null,null,null,0]
["[Ajouter la description de la tâche ici]",null,null,null,null,null,0]
["[Ajouter la description de la tâche ici]",null,null,null,null,null,0]
["[Ajouter la description de la tâche ici]",null,null,null,null,null,0]
["[Ajouter la description de la tâche ici]",null,null,null,null,null,0]
["[Ajouter la description de la tâche ici]",null,null,null,null,null,0]
["[Ajouter la description de la tâche ici]",null,null,null,null,null,0]
["[Ajouter la description de la tâche ici]",null,null,null,null,null,0]
["[Ajouter la description de la tâche ici]",null,null,null,null,null,0]
["[Ajouter la description de la tâche ici]",null,null,null,null,null,0]
["[Ajouter la description de la tâche ici]",null,null,null,null,null,{"$f":"E20+F20","v":0}]
["[Ajouter la description de la tâche ici]",null,null,null,null,null,0]
["[Ajouter la description de la tâche ici]",null,null,null,null,null,0]
["Sous-total",null,null,null,null,null,{"$f":"SUM(G7:OFFSET(G23,-1,0))","v":0},{"$f":"SUMIF((G5),\"=YES\",E23)","v":0}]
["Étape 2 : Veuillez indiquer votre deuxième étape","mm/aaaa","mm/aaaa"]
["Description de l'étape : [Dans cette case, veuillez décrire l'étape ou le livrable principal qui témoigne de l'achèvement de cette étape]"]
["[Ajouter la description de la tâche ici]",null,null,null,null,null,{"$f":"E26+F26","v":0}]
["[Ajouter la description de la tâche ici]",null,null,null,null,null,{"$f":"E27+F27","v":0}]
["[Ajouter la description de la tâche ici]",null,null,null,null,null,0]
["[Ajouter la description de la tâche ici]",null,null,null,null,null,0]
["[Ajouter la description de la tâche ici]",null,null,null,null,null,0]
["[Ajouter la description de la tâche ici]",null,null,null,null,null,0]
["[Ajouter la description de la tâche ici]",null,null,null,null,null,0]
["[Ajouter la description de la tâche ici]",null,null,null,null,null,0]
["[Ajouter la description de la tâche ici]",null,null,null,null,null,0]
["[Ajouter la description de la tâche ici]",null,null,null,null,null,0]
["[Ajouter la description de la tâche ici]",null,null,null,null,null,0]
["[Ajouter la description de la tâche ici]",null,null,null,null,null,0]
["[Ajouter la description de la tâche ici]",null,null,null,null,null,0]
["[Ajouter la description de la tâche ici]",null,null,null,null,null,0]
["[Ajouter la description de la tâche ici]",null,null,null,null,null,0]
["[Ajouter la description de la tâche ici]",null,null,null,null,null,0]
["Sous-total",null,null,null,null,null,{"$f":"SUM(G26:OFFSET(G42,-1,0))","v":0},{"$f":"SUMIF((G24),\"=YES\",E42)","v":0}]
["Étape 3 : Veuillez indiquer votre troisième étape","mm/aaaa","mm/aaaa"]
["Description de l'étape : [Dans cette case, veuillez décrire l'étape ou le livrable principal qui témoigne de l'achèvement de cette étape]"]
["[Ajouter la description de la tâche ici]",null,null,null,null,null,{"$f":"E45+F45","v":0}]
["[Ajouter la description de la tâche ici]",null,null,null,null,null,{"$f":"E46+F46","v":0}]
["[Ajouter la description de la tâche ici]",null,null,null,null,null,0]
["[Ajouter la description de la tâche ici]",null,null,null,null,null,0]
["[Ajouter la description de la tâche ici]",null,null,null,null,null,0]
["[Ajouter la description de la tâche ici]",null,null,null,null,null,0]
["[Ajouter la description de la tâche ici]",null,null,null,null,null,0]
["[Ajouter la description de la tâche ici]",null,null,null,null,null,{"$f":"E52+F52","v":0}]
["[Ajouter la description de la tâche ici]",null,null,null,null,null,0]
["[Ajouter la description de la tâche ici]",null,null,null,null,null,0]
["[Ajouter la description de la tâche ici]",null,null,null,null,null,0]
["[Ajouter la description de la tâche ici]",null,null,null,null,null,0]
["[Ajouter la description de la tâche ici]",null,null,null,null,null,0]
["[Ajouter la description de la tâche ici]",null,null,null,null,null,0]
["[Ajouter la description de la tâche ici]",null,null,null,null,null,0]
["[Ajouter la description de la tâche ici]",null,null,null,null,null,0]
["Sous-total",null,null,null,null,null,{"$f":"SUM(G45:OFFSET(G61,-1,0))","v":0},{"$f":"SUMIF((G43),\"=YES\",E61)","v":0}]
["Étape 4 : Veuillez indiquer votre quatrième étape (au besoin)","mm/aaaa","mm/aaaa"]
["Description de l'étape : [Dans cette case, veuillez décrire l'étape ou le livrable principal qui témoigne de l'achèvement de cette étape]"]
["[Ajouter la description de la tâche ici]",null,null,null,null,null,{"$f":"E64+F64","v":0}]
["[Ajouter la description de la tâche ici]",null,null,null,null,null,0]
["[Ajouter la description de la tâche ici]",null,null,null,null,null,0]
["[Ajouter la description de la tâche ici]",null,null,null,null,null,0]
["[Ajouter la description de la tâche ici]",null,null,null,null,null,0]
["[Ajouter la description de la tâche ici]",null,null,null,null,null,0]
["[Ajouter la description de la tâche ici]",null,null,null,null,null,0]
["[Ajouter la description de la tâche ici]",null,null,null,null,null,0]
["[Ajouter la description de la tâche ici]",null,null,null,null,null,0]
["[Ajouter la description de la tâche ici]",null,null,null,null,null,0]
["[Ajouter la description de la tâche ici]",null,null,null,null,null,0]
["[Ajouter la description de la tâche ici]",null,null,null,null,null,0]
["[Ajouter la description de la tâche ici]",null,null,null,null,null,0]
["[Ajouter la description de la tâche ici]",null,null,null,null,null,0]
["[Ajouter la description de la tâche ici]",null,null,null,null,null,0]
["[Ajouter la description de la tâche ici]",null,null,null,null,null,0]
["Sous-total",null,null,null,null,null,{"$f":"SUM(G63:OFFSET(G80,-1,0))","v":0},{"$f":"SUMIF((G62),\"=YES\",E80)","v":0}]
["Étape 5 : Veuillez indiquer votre cinquième étape (au besoin)","mm/aaaa","mm/aaaa"]
["Description de l'étape : [Dans cette case, veuillez décrire l'étape ou le livrable principal qui témoigne de l'achèvement de cette étape]"]
["[Ajouter la description de la tâche ici]",null,null,null,null,null,{"$f":"E83+F83","v":0}]
["[Ajouter la description de la tâche ici]",null,null,null,null,null,0]
["[Ajouter la description de la tâche ici]",null,null,null,null,null,0]
["[Ajouter la description de la tâche ici]",null,null,null,null,null,0]
["[Ajouter la description de la tâche ici]",null,null,null,null,null,0]
["[Ajouter la description de la tâche ici]",null,null,null,null,null,0]
["[Ajouter la description de la tâche ici]",null,null,null,null,null,0]
["[Ajouter la description de la tâche ici]",null,null,null,null,null,0]
["[Ajouter la description de la tâche ici]",null,null,null,null,null,0]
["[Ajouter la description de la tâche ici]",null,null,null,null,null,0]
["[Ajouter la description de la tâche ici]",null,null,null,null,null,0]
["[Ajouter la description de la tâche ici]",null,null,null,null,null,0]
["[Ajouter la description de la tâche ici]",null,null,null,null,null,0]
["[Ajouter la description de la tâche ici]",null,null,null,null,null,0]
["[Ajouter la description de la tâche ici]",null,null,null,null,null,0]
["[Ajouter la description de la tâche ici]",null,null,null,null,null,0]
["Sous-total",null,null,null,null,null,{"$f":"SUM(G82:OFFSET(G99,-1,0))","v":0},{"$f":"SUMIF((G81),\"=YES\",E99)","v":0}]
["Étape 6 : Veuillez indiquer votre sixième étape (au besoin)","mm/aaaa","mm/aaaa"]
["Description de l'étape : [Dans cette case, veuillez décrire l'étape ou le livrable principal qui témoigne de l'achèvement de cette étape]"]
["[Ajouter la description de la tâche ici]",null,null,null,null,null,{"$f":"E102+F102","v":0}]
["[Ajouter la description de la tâche ici]",null,null,null,null,null,0]
["[Ajouter la description de la tâche ici]",null,null,null,null,null,0]
["[Ajouter la description de la tâche ici]",null,null,null,null,null,0]
["[Ajouter la description de la tâche ici]",null,null,null,null,null,0]
["[Ajouter la description de la tâche ici]",null,null,null,null,null,0]
["[Ajouter la description de la tâche ici]",null,null,null,null,null,0]
["[Ajouter la description de la tâche ici]",null,null,null,null,null,0]
["[Ajouter la description de la tâche ici]",null,null,null,null,null,0]
["[Ajouter la description de la tâche ici]",null,null,null,null,null,0]
["[Ajouter la description de la tâche ici]",null,null,null,null,null,0]
["[Ajouter la description de la tâche ici]",null,null,null,null,null,0]
["[Ajouter la description de la tâche ici]",null,null,null,null,null,0]
["[Ajouter la description de la tâche ici]",null,null,null,null,null,0]
["[Ajouter la description de la tâche ici]",null,null,null,null,null,0]
["[Ajouter la description de la tâche ici]",null,null,null,null,null,0]
["Sous-total",null,null,null,null,null,{"$f":"SUM(G101:OFFSET(G118,-1,0))","v":0},{"$f":"SUMIF((G100),\"=YES\",E118)","v":0}]
["Total – Toutes les étapes ",null,null,null,{"$f":"(SUM(E7:OFFSET(E119,-1,0)))","v":0},{"$f":"(SUM(F7:OFFSET(F119,-1,0)))","v":0},{"$f":"E119+F119","v":0}]
[]
["Remarque : Cliquez sur le bouton « Calculer le budget » pour arrondir votre budget à la centaine de dollars près.",null,null,null,"Total des coûts admissibles",null,{"$f":"E119","v":0}]
[]
["Coûts éventuels : Avez-vous inclus une marge pour les imprévus dans certains ou dans l'ensemble des coûts relatifs à vos tâches? Veuillez expliquer."]
["[Ajouter une explication concernant l'imprévu ici]"]
[]
["Autres remarques :"]
["[Ajouter tout autre détail pertinent concernant votre plan de travail et votre budget ici]"]
[]
["Contribution anticipée (avant la vérification du FMV)"]
["Total de la contribution anticipée autorisée",{"$f":"IF(G2=\"Municipalité\",'4. Sources de financement'!E4*0.7, IF(G2=\"Société municipale\",'4. Sources de financement'!E4*0.7,IF(G2=\"ONG/autre\",'4. Sources de financement'!E4*0.5, IF(G2=\"Privé\",0, 0))))","v":0}]
["Pour être admissible à une contribution anticipée, les demandeurs doivent avoir obtenu confirmation de toutes les sources de financement et avoir en place leur équipe d'exécution du projet. \n\nLa FCM effectuera une évaluation du risque après approbation de votre demande pour déterminer le total de la contribution anticipée admissible. Selon le type de demandeur, les montants maximums suivants peuvent être offerts :\n- Les municipalités québécoises ne sont actuellement pas admissibles à une contribution anticipée.\n-Les municipalités et les organisations détenues par une municipalité, hors Québec, peuvent être admissibles à une contribution anticipée équivalante à 70 % du montant de leur subvention approuvée à verser au moment de la signature de la convention de subvention.\n- Les ONG et d'autres entités sans but lucratif peuvent être admissibles à une contribution anticipée équivalante à 50 % du montant de leur subvention approuvée à verser au moment de la signature de la convention de subvention. \n- Les entités privées, telles que déterminées par la FCM, ne sont pas admissibles à une contribution anticipée. "]
["Souhaitez-vous bénéficier d'une contribution anticipée? (sélectionnez OUI ou NON)"]
[]
[]
[]
[]
[]
[]
[]
[]
[]
[]
[]
[]
[]
[]
["OUI"]
["NON"]
[]
["Municipalité"]
["Société municipale"]
["ONG/autre"]
["Privé"]
[]
["Plan"]
["Étude de faisabilité"]
["Projet pilote"]
[]
["(1) Avant la demande"]
["(2) Frais d'administration"]
["(3) Publicité"]
["(4) Dépenses en immobilisation"]
["(5) Location d'équipement"]
["(6) En nature"]
["(7) Réunions et assemblées publiques"]
["(8) Services"]
["(9) Rémunération du personnel"]
["(10) Fournitures et matériaux"]
["(11) Frais de transport, d'expédition et de messageries"]
["(12) Déplacement et hébergement"]
["(13) Taxes"]

{"sheet":"4. Sources de financement","index":3,"n_rows":25,"n_cols":6,"rows_kept":25,"cut":false,"hidden":false,"merged":[]}
["INSTRUCTIONS\nInscrivez toutes les sources de financement pour cette initiative. Pour chaque source de financement, veuillez indiquer le montant du financement et le moment auquel il sera ou devrait être confirmé. Le total de toutes les sources de financement doit être égal aux coûts totaux du projet figurant dans votre Budget et plan de travail (onglet 3). \nLa contribution en espèces de l'administration municipale doit représenter au moins 10 % des coûts admissibles sauf s'il en a été décidé autrement par la FCM.  \nLa FCM imposera un plafond à la subvention du FMV en fonction des autres sources de financement confirmées.\n\nPlans et études de faisabilité\nLa FCM offre des subventions qui couvrent jusqu'à 50 % des coûts admissibles (jusqu'à concurrence de 175 000 $) en vue d'entreprendre les plans et études de faisabilité admissibles. \n\nProjets pilotes\nLa FCM offre des subventions qui couvrent jusqu'à 50 % des coûts admissibles (jusqu'à concurrence de 500 000 $) pour entreprendre les projets pilotes admissibles. Les municipalités comptant 20 000 habitants ou moins et leurs partenaires municipaux peuvent avoir droit à une subvention pour un projet pilote couvrant jusqu'à 80 % des coûts admissibles du projet dans certaines conditions. Communiquez avec nous pour déterminer si votre municipalité est admissible. "]
["SOURCES DE FINANCEMENT"]
["Source de financement","Description","Confirmée? (O/N)","Date de l'engagement\nJJ-MM-AAAA","Montant","Pourcentage du budget total"]
["Fonds municipal vert","Subvention","N",null,{"$f":"IF('3. Budget - Plan de travail'!G3=\"Projet Pilote\",IF(((0.5*'3. Budget - Plan de travail'!G121)>500000),500000,0.5*'3. Budget - Plan de travail'!G121),IF(((0.5*'3. Budget - Plan de travail'!G121)>175000),175000,0.5*'3. Budget - Plan de travail'!G121))","v":0},{"$f":"IFERROR(E4/$E$24,0)","v":0}]
[" Nom de la municipalité principale","Comptant",null,null,null,0]
["Autre source de financement ",null,null,null,null,0]
["Autre source de financement ",null,null,null,null,0]
["Autre source de financement ",null,null,null,null,0]
["Autre source de financement ",null,null,null,null,0]
["Autre source de financement ",null,null,null,null,0]
["Autre source de financement ",null,null,null,null,0]
["Autre source de financement ",null,null,null,null,0]
["Autre source de financement ",null,null,null,null,0]
["Autre source de financement ",null,null,null,null,0]
["Autre source de financement ",null,null,null,null,0]
["Autre source de financement ",null,null,null,null,0]
["Autre source de financement ",null,null,null,null,0]
["Autre source de financement ",null,null,null,null,0]
["Autre source de financement ",null,null,null,null,0]
["Autre source de financement ",null,null,null,null,0]
["Autre source de financement ",null,null,null,null,0]
["[Le financement total devrait être égal aux coûts totaux figurant à l'onglet 3, Budget et plan de travail ]",null,null,"Financement total :",{"$f":"SUM(E4:OFFSET(E22,-1,0))","v":0},0]
[]
[null,null," Coûts totaux du budget",null,{"$f":"'3. Budget - Plan de travail'!G119","v":0}]
[null,null," Coûts totaux admissibles du budget",null,{"$f":"'3. Budget - Plan de travail'!G121","v":0}]

{"sheet":"5. Tableau paiements & rapports","index":4,"n_rows":27,"n_cols":5,"rows_kept":27,"cut":false,"hidden":true,"merged":[[0,0,0,3],[1,4,1,7],[16,1,26,1],[16,2,26,2],[2,1,5,2],[7,3,15,3],[16,3,26,3],[1,1,1,2],[7,1,15,1],[7,2,15,2],[2,3,5,3]]}
["Tableau des paiements et des rapports"]
["Contribution(s) et livrable(s)","Date prévue de la contribution",null,"La contribution doit être égale à :","[EXEMPLE] : L'agent de projet doit insérer un tableau personnalisé"]
["Contribution anticipée no 1 ","Dans les 30 jours suivant la signature de la convention \n+\nle reçu d'un chèque annulé",null,"INSÉRER LE MONTANT CALCULÉ AU MOMENT DE L'APPROBATION DU PROJET) $"]
["•        Convention de subvention signé"]
["•         Chèque annulé"]
[]
["Contribution(s) et livrable(s)","Date de présentation approximative","Date approximative de la contribution","La contribution doit être égale au moindre des deux montants suivants :"]
["Contribution  no 2","INSÉRER LA DATE À LAQUELLE LE FVM S'ATTEND À RECEVOIR LA DEMANDE DÛMENT REMPLIE","INSÉRER LA DATE POSTÉRIEURE DE 30 JOURS À LA DATE DE LA PRÉSENTATION","$ INSÉRER LE MONTANT COMBINÉ DES CONTRIBUTIONS 1 ET 2, QUI DOIT REPRÉSENTER AU MAXIMUM 75 % DE LA SUBVENTION TOTALE moins le montant des contributions antérieures; ou\n\nINSÉRER 50 OU 80 TEL QU'INDIQUE DANS L'APPROBATION % des coûts admissibles alors engagés par le Bénéficiaire moins le montant de la contribution antérieure"]
["•         Annexe D – Demande de Contribution "]
["•        Annexe E – Rapport d'étape du projet"]
["•       PERTINENTS DU CARNET ont été menées à bien : INSÉRER LES LIVRABLES MENTIONNÉS DANS LE CARNET DE PROJET"]
["•         Carnet de projet mis à jour"]
["o    Sources de financement"]
["o    Calendrier des paiements et de présentation des rapports"]
["o    Demande de remboursement des dépenses"]
["•         Conditions supplémentaires : INSÉRER TOUTE CONDITION SUPPLÉMENTAIRE IMPOSÉE PAR LE PERSONNEL DU FMV, LE CONSEIL DU FMV OU LE CONSEIL D'ADMINISTRATION DE LA FCM OU ÉCRIRE Aucune "]
["Contribution finale","INSÉRER LA DATE À LAQUELLE LE FMV S'ATTEND À RECEVOIR LA DEMANDE DÛMENT REMPLIE","INSÉRER LA DATE POSTÉRIEURE DE 30 JOURS À LA DATE DE LA PRÉSENTATION","$ INSÉRER LE MONTANT TOTAL DE LA SUBVENTION moins le montant des contributions antérieures; ou\n\nINSÉRER 50 OU 80 TEL QU'INDIQUE DANS L'APPROBATION % des coûts admissibles alors engagés par le Bénéficiaire moins le total des contributions antérieures"]
["•         Annexe D – Demande de contribution "]
["•         Annexe F – Rapport d'achèvement du projet "]
["•         Preuve que les étapes INSÉRER LES NUMÉROS PERTINENTS DU CARNET ont été menées à bien : INSÉRER LES LIVRABLES MENTIONNÉS DANS LE CARNET DE PROJET"]
["•        Carnet de projet mis à jour"]
["o    Sources de financement"]
["o    Calendrier des paiements et de présentation des rapports"]
["o    Demande de remboursement des dépenses"]
["•         INSÉRER LE NOM DU / DES LIVRABLE(S) FINAL(AUX) "]
["•        S'IL S'AGIT D'UN PLAN, INSÉRER « Preuve de l'approbation du conseil municipal »"]
["•           Conditions supplémentaires : INSÉRER TOUTE CONDITION SUPPLÉMENTAIRE IMPOSÉE PAR LE PERSONNEL DU FMV, LE CONSEIL DU FMV OU LE CONSEIL D'ADMINISTRATION DE LA FCM OU ÉCRIRE Aucune "]

{"sheet":"6. Demandes de remboursement","index":5,"n_rows":141,"n_cols":13,"rows_kept":141,"cut":false,"hidden":true,"merged":[]}
["                                                                                                                                                                                                      Demande de remboursement des dépenses  ̶  Initiatives menées dans le cadre du FMV"]
["Demandeur principal :",{"$f":"'3. Budget - Plan de travail'!B2","v":0},null,null,null,null,"Indiquez le taux de remboursement de la taxe ------->"]
["Titre du projet :",{"$f":"'3. Budget - Plan de travail'!B3","v":0}]
["                                                                                                         Coûts estimatifs du budget (tirés de l'onglet 3, Plan de travail et budget)",null,null,null,null,null,null,null,"                                                                                                                                                         Coûts réels du budget"]
["Étapes","Date de début ","Date de fin ","Catégorie de coûts","Coûts admissibles \n($)","Coûts non admissibles ($)","Coûts totaux prévus \n($)",null,"Coûts admissibles réels (déduction faite du remboursement de la taxe)","Coûts non admissibles réels (déduction faite du remboursement de la taxe)","Coûts réels totaux (déduction faite du remboursement de la taxe)","Commentaires du bénéficiaire","Commentaires du FMV"]
[{"$f":"'3. Budget - Plan de travail'!A5","v":"Étape 1 : Veuillez indiquer votre première étape"},{"$f":"'3. Budget - Plan de travail'!B5","v":"mm/aaaa"},{"$f":"'3. Budget - Plan de travail'!C5","v":"mm/aaaa"}]
[{"$f":"'3. Budget - Plan de travail'!A6","v":"Description de l'étape : [Dans cette case, veuillez décrire l'étape ou le livrable principal qui témoigne de l'achèvement de cette étape]"}]
[{"$f":"'3. Budget - Plan de travail'!A7:C7","v":"[Ajouter la description de la tâche ici]"},null,null,{"$f":"'3. Budget - Plan de travail'!D7","v":0},{"$f":"'3. Budget - Plan de travail'!E7","v":0},{"$f":"'3. Budget - Plan de travail'!F7","v":0},{"$f":"'3. Budget - Plan de travail'!G7","v":0},null,null,null,{"$f":"I8+J8","v":0}]
[{"$f":"'3. Budget - Plan de travail'!A8:C8","v":"[Ajouter la description de la tâche ici]"},null,null,{"$f":"'3. Budget - Plan de travail'!D8","v":0},{"$f":"'3. Budget - Plan de travail'!E8","v":0},{"$f":"'3. Budget - Plan de travail'!F8","v":0},{"$f":"'3. Budget - Plan de travail'!G8","v":0},null,null,null,{"$f":"I9+J9","v":0}]
[{"$f":"'3. Budget - Plan de travail'!A9:C9","v":"[Ajouter la description de la tâche ici]"},null,null,{"$f":"'3. Budget - Plan de travail'!D9","v":0},{"$f":"'3. Budget - Plan de travail'!E9","v":0},{"$f":"'3. Budget - Plan de travail'!F9","v":0},{"$f":"'3. Budget - Plan de travail'!G9","v":0},null,null,null,0]
[{"$f":"'3. Budget - Plan de travail'!A10:C10","v":"[Ajouter la description de la tâche ici]"},null,null,{"$f":"'3. Budget - Plan de travail'!D10","v":0},{"$f":"'3. Budget - Plan de travail'!E10","v":0},{"$f":"'3. Budget - Plan de travail'!F10","v":0},{"$f":"'3. Budget - Plan de travail'!G10","v":0},null,null,null,0]
[{"$f":"'3. Budget - Plan de travail'!A11:C11","v":"[Ajouter la description de la tâche ici]"},null,null,{"$f":"'3. Budget - Plan de travail'!D11","v":0},{"$f":"'3. Budget - Plan de travail'!E11","v":0},{"$f":"'3. Budget - Plan de travail'!F11","v":0},{"$f":"'3. Budget - Plan de travail'!G11","v":0},null,null,null,0]
[{"$f":"'3. Budget - Plan de travail'!A12:C12","v":"[Ajouter la description de la tâche ici]"},null,null,{"$f":"'3. Budget - Plan de travail'!D12","v":0},{"$f":"'3. Budget - Plan de travail'!E12","v":0},{"$f":"'3. Budget - Plan de travail'!F12","v":0},{"$f":"'3. Budget - Plan de travail'!G12","v":0},null,null,null,0]
[{"$f":"'3. Budget - Plan de travail'!A13:C13","v":"[Ajouter la description de la tâche ici]"},null,null,{"$f":"'3. Budget - Plan de travail'!D13","v":0},{"$f":"'3. Budget - Plan de travail'!E13","v":0},{"$f":"'3. Budget - Plan de travail'!F13","v":0},{"$f":"'3. Budget - Plan de travail'!G13","v":0},null,null,null,0]
[{"$f":"'3. Budget - Plan de travail'!A14:C14","v":"[Ajouter la description de la tâche ici]"},null,null,{"$f":"'3. Budget - Plan de travail'!D14","v":0},{"$f":"'3. Budget - Plan de travail'!E14","v":0},{"$f":"'3. Budget - Plan de travail'!F14","v":0},{"$f":"'3. Budget - Plan de travail'!G14","v":0},null,null,null,0]
[{"$f":"'3. Budget - Plan de travail'!A15:C15","v":"[Ajouter la description de la tâche ici]"},null,null,{"$f":"'3. Budget - Plan de travail'!D15","v":0},{"$f":"'3. Budget - Plan de travail'!E15","v":0},{"$f":"'3. Budget - Plan de travail'!F15","v":0},{"$f":"'3. Budget - Plan de travail'!G15","v":0},null,null,null,0]
[{"$f":"'3. Budget - Plan de travail'!A16:C16","v":"[Ajouter la description de la tâche ici]"},null,null,{"$f":"'3. Budget - Plan de travail'!D16","v":0},{"$f":"'3. Budget - Plan de travail'!E16","v":0},{"$f":"'3. Budget - Plan de travail'!F16","v":0},{"$f":"'3. Budget - Plan de travail'!G16","v":0},null,null,null,0]
[{"$f":"'3. Budget - Plan de travail'!A17:C17","v":"[Ajouter la description de la tâche ici]"},null,null,{"$f":"'3. Budget - Plan de travail'!D17","v":0},{"$f":"'3. Budget - Plan de travail'!E17","v":0},{"$f":"'3. Budget - Plan de travail'!F17","v":0},{"$f":"'3. Budget - Plan de travail'!G17","v":0},null,null,null,0]
[{"$f":"'3. Budget - Plan de travail'!A18:C18","v":"[Ajouter la description de la tâche ici]"},null,null,{"$f":"'3. Budget - Plan de travail'!D18","v":0},{"$f":"'3. Budget - Plan de travail'!E18","v":0},{"$f":"'3. Budget - Plan de travail'!F18","v":0},{"$f":"'3. Budget - Plan de travail'!G18","v":0},null,null,null,0]
[{"$f":"'3. Budget - Plan de travail'!A19:C19","v":"[Ajouter la description de la tâche ici]"},null,null,{"$f":"'3. Budget - Plan de travail'!D19","v":0},{"$f":"'3. Budget - Plan de travail'!E19","v":0},{"$f":"'3. Budget - Plan de travail'!F19","v":0},{"$f":"'3. Budget - Plan de travail'!G19","v":0},null,null,null,0]
[{"$f":"'3. Budget - Plan de travail'!A20:C20","v":"[Ajouter la description de la tâche ici]"},null,null,{"$f":"'3. Budget - Plan de travail'!D20","v":0},{"$f":"'3. Budget - Plan de travail'!E20","v":0},{"$f":"'3. Budget - Plan de travail'!F20","v":0},{"$f":"'3. Budget - Plan de travail'!G20","v":0},null,null,null,0]
[{"$f":"'3. Budget - Plan de travail'!A21:C21","v":"[Ajouter la description de la tâche ici]"},null,null,{"$f":"'3. Budget - Plan de travail'!D21","v":0},{"$f":"'3. Budget - Plan de travail'!E21","v":0},{"$f":"'3. Budget - Plan de travail'!F21","v":0},{"$f":"'3. Budget - Plan de travail'!G21","v":0},null,null,null,0]
[{"$f":"'3. Budget - Plan de travail'!A22:C22","v":"[Ajouter la description de la tâche ici]"},null,null,{"$f":"'3. Budget - Plan de travail'!D22","v":0},{"$f":"'3. Budget - Plan de travail'!E22","v":0},{"$f":"'3. Budget - Plan de travail'!F22","v":0},{"$f":"'3. Budget - Plan de travail'!G22","v":0},null,null,null,0]
["Sous-total",null,null,null,{"$f":"'3. Budget - Plan de travail'!E23","v":0},{"$f":"'3. Budget - Plan de travail'!F23","v":0},{"$f":"'3. Budget - Plan de travail'!G23","v":0},null,{"$f":"SUM(I8:I23)","v":0},{"$f":"SUM(J8:J23)","v":0},{"$f":"SUM(K8:K23)","v":0}]
[{"$f":"'3. Budget - Plan de travail'!A24","v":"Étape 2 : Veuillez indiquer votre deuxième étape"},{"$f":"'3. Budget - Plan de travail'!B24","v":"mm/aaaa"},{"$f":"'3. Budget - Plan de travail'!C24","v":"mm/aaaa"}]
[{"$f":"'3. Budget - Plan de travail'!A25","v":"Description de l'étape : [Dans cette case, veuillez décrire l'étape ou le livrable principal qui témoigne de l'achèvement de cette étape]"}]
[{"$f":"'3. Budget - Plan de travail'!A26:C26","v":"[Ajouter la description de la tâche ici]"},null,null,{"$f":"'3. Budget - Plan de travail'!D26","v":0},{"$f":"'3. Budget - Plan de travail'!E26","v":0},{"$f":"'3. Budget - Plan de travail'!F26","v":0},{"$f":"'3. Budget - Plan de travail'!G26","v":0},null,null,null,{"$f":"I27+J27","v":0}]
[{"$f":"'3. Budget - Plan de travail'!A27:C27","v":"[Ajouter la description de la tâche ici]"},null,null,{"$f":"'3. Budget - Plan de travail'!D27","v":0},{"$f":"'3. Budget - Plan de travail'!E27","v":0},{"$f":"'3. Budget - Plan de travail'!F27","v":0},{"$f":"'3. Budget - Plan de travail'!G27","v":0},null,null,null,{"$f":"I28+J28","v":0}]
[{"$f":"'3. Budget - Plan de travail'!A28:C28","v":"[Ajouter la description de la tâche ici]"},null,null,{"$f":"'3. Budget - Plan de travail'!D28","v":0},{"$f":"'3. Budget - Plan de travail'!E28","v":0},{"$f":"'3. Budget - Plan de travail'!F28","v":0},{"$f":"'3. Budget - Plan de travail'!G28","v":0},null,null,null,0]
[{"$f":"'3. Budget - Plan de travail'!A29:C29","v":"[Ajouter la description de la tâche ici]"},null,null,{"$f":"'3. Budget - Plan de travail'!D29","v":0},{"$f":"'3. Budget - Plan de travail'!E29","v":0},{"$f":"'3. Budget - Plan de travail'!F29","v":0},{"$f":"'3. Budget - Plan de travail'!G29","v":0},null,null,null,0]
[{"$f":"'3. Budget - Plan de travail'!A30:C30","v":"[Ajouter la description de la tâche ici]"},null,null,{"$f":"'3. Budget - Plan de travail'!D30","v":0},{"$f":"'3. Budget - Plan de travail'!E30","v":0},{"$f":"'3. Budget - Plan de travail'!F30","v":0},{"$f":"'3. Budget - Plan de travail'!G30","v":0},null,null,null,0]
[{"$f":"'3. Budget - Plan de travail'!A31:C31","v":"[Ajouter la description de la tâche ici]"},null,null,{"$f":"'3. Budget - Plan de travail'!D31","v":0},{"$f":"'3. Budget - Plan de travail'!E31","v":0},{"$f":"'3. Budget - Plan de travail'!F31","v":0},{"$f":"'3. Budget - Plan de travail'!G31","v":0},null,null,null,0]
[{"$f":"'3. Budget - Plan de travail'!A32:C32","v":"[Ajouter la description de la tâche ici]"},null,null,{"$f":"'3. Budget - Plan de travail'!D32","v":0},{"$f":"'3. Budget - Plan de travail'!E32","v":0},{"$f":"'3. Budget - Plan de travail'!F32","v":0},{"$f":"'3. Budget - Plan de travail'!G32","v":0},null,null,null,0]
[{"$f":"'3. Budget - Plan de travail'!A33:C33","v":"[Ajouter la description de la tâche ici]"},null,null,{"$f":"'3. Budget - Plan de travail'!D33","v":0},{"$f":"'3. Budget - Plan de travail'!E33","v":0},{"$f":"'3. Budget - Plan de travail'!F33","v":0},{"$f":"'3. Budget - Plan de travail'!G33","v":0},null,null,null,0]
[{"$f":"'3. Budget - Plan de travail'!A34:C34","v":"[Ajouter la description de la tâche ici]"},null,null,{"$f":"'3. Budget - Plan de travail'!D34","v":0},{"$f":"'3. Budget - Plan de travail'!E34","v":0},{"$f":"'3. Budget - Plan de travail'!F34","v":0},{"$f":"'3. Budget - Plan de travail'!G34","v":0},null,null,null,0]
[{"$f":"'3. Budget - Plan de travail'!A35:C35","v":"[Ajouter la description de la tâche ici]"},null,null,{"$f":"'3. Budget - Plan de travail'!D35","v":0},{"$f":"'3. Budget - Plan de travail'!E35","v":0},{"$f":"'3. Budget - Plan de travail'!F35","v":0},{"$f":"'3. Budget - Plan de travail'!G35","v":0},null,null,null,0]
[{"$f":"'3. Budget - Plan de travail'!A36:C36","v":"[Ajouter la description de la tâche ici]"},null,null,{"$f":"'3. Budget - Plan de travail'!D36","v":0},{"$f":"'3. Budget - Plan de travail'!E36","v":0},{"$f":"'3. Budget - Plan de travail'!F36","v":0},{"$f":"'3. Budget - Plan de travail'!G36","v":0},null,null,null,0]
[{"$f":"'3. Budget - Plan de travail'!A37:C37","v":"[Ajouter la description de la tâche ici]"},null,null,{"$f":"'3. Budget - Plan de travail'!D37","v":0},{"$f":"'3. Budget - Plan de travail'!E37","v":0},{"$f":"'3. Budget - Plan de travail'!F37","v":0},{"$f":"'3. Budget - Plan de travail'!G37","v":0},null,null,null,0]
[{"$f":"'3. Budget - Plan de travail'!A38:C38","v":"[Ajouter la description de la tâche ici]"},null,null,{"$f":"'3. Budget - Plan de travail'!D38","v":0},{"$f":"'3. Budget - Plan de travail'!E38","v":0},{"$f":"'3. Budget - Plan de travail'!F38","v":0},{"$f":"'3. Budget - Plan de travail'!G38","v":0},null,null,null,0]
[{"$f":"'3. Budget - Plan de travail'!A39:C39","v":"[Ajouter la description de la tâche ici]"},null,null,{"$f":"'3. Budget - Plan de travail'!D39","v":0},{"$f":"'3. Budget - Plan de travail'!E39","v":0},{"$f":"'3. Budget - Plan de travail'!F39","v":0},{"$f":"'3. Budget - Plan de travail'!G39","v":0},null,null,null,0]
[{"$f":"'3. Budget - Plan de travail'!A40:C40","v":"[Ajouter la description de la tâche ici]"},null,null,{"$f":"'3. Budget - Plan de travail'!D40","v":0},{"$f":"'3. Budget - Plan de travail'!E40","v":0},{"$f":"'3. Budget - Plan de travail'!F40","v":0},{"$f":"'3. Budget - Plan de travail'!G40","v":0},null,null,null,0]
[{"$f":"'3. Budget - Plan de travail'!A41:C41","v":"[Ajouter la description de la tâche ici]"},null,null,{"$f":"'3. Budget - Plan de travail'!D41","v":0},{"$f":"'3. Budget - Plan de travail'!E41","v":0},{"$f":"'3. Budget - Plan de travail'!F41","v":0},{"$f":"'3. Budget - Plan de travail'!G41","v":0},null,null,null,0]
["Sous-total",null,null,null,{"$f":"'3. Budget - Plan de travail'!E42","v":0},{"$f":"'3. Budget - Plan de travail'!F42","v":0},{"$f":"'3. Budget - Plan de travail'!G42","v":0},null,{"$f":"SUM(I27:I42)","v":0},{"$f":"SUM(J27:J42)","v":0},{"$f":"SUM(K27:K42)","v":0}]
[{"$f":"'3. Budget - Plan de travail'!A43","v":"Étape 3 : Veuillez indiquer votre troisième étape"},{"$f":"'3. Budget - Plan de travail'!B43","v":"mm/aaaa"},{"$f":"'3. Budget - Plan de travail'!C43","v":"mm/aaaa"}]
[{"$f":"'3. Budget - Plan de travail'!A44","v":"Description de l'étape : [Dans cette case, veuillez décrire l'étape ou le livrable principal qui témoigne de l'achèvement de cette étape]"}]
[{"$f":"'3. Budget - Plan de travail'!A45:C45","v":"[Ajouter la description de la tâche ici]"},null,null,{"$f":"'3. Budget - Plan de travail'!D45","v":0},{"$f":"'3. Budget - Plan de travail'!E45","v":0},{"$f":"'3. Budget - Plan de travail'!F45","v":0},{"$f":"'3. Budget - Plan de travail'!G45","v":0},null,null,null,{"$f":"I46+J46","v":0}]
[{"$f":"'3. Budget - Plan de travail'!A46:C46","v":"[Ajouter la description de la tâche ici]"},null,null,{"$f":"'3. Budget - Plan de travail'!D46","v":0},{"$f":"'3. Budget - Plan de travail'!E46","v":0},{"$f":"'3. Budget - Plan de travail'!F46","v":0},{"$f":"'3. Budget - Plan de travail'!G46","v":0},null,null,null,{"$f":"I47+J47","v":0}]
[{"$f":"'3. Budget - Plan de travail'!A47:C47","v":"[Ajouter la description de la tâche ici]"},null,null,{"$f":"'3. Budget - Plan de travail'!D47","v":0},{"$f":"'3. Budget - Plan de travail'!E47","v":0},{"$f":"'3. Budget - Plan de travail'!F47","v":0},{"$f":"'3. Budget - Plan de travail'!G47","v":0},null,null,null,0]
[{"$f":"'3. Budget - Plan de travail'!A48:C48","v":"[Ajouter la description de la tâche ici]"},null,null,{"$f":"'3. Budget - Plan de travail'!D48","v":0},{"$f":"'3. Budget - Plan de travail'!E48","v":0},{"$f":"'3. Budget - Plan de travail'!F48","v":0},{"$f":"'3. Budget - Plan de travail'!G48","v":0},null,null,null,0]
[{"$f":"'3. Budget - Plan de travail'!A49:C49","v":"[Ajouter la description de la tâche ici]"},null,null,{"$f":"'3. Budget - Plan de travail'!D49","v":0},{"$f":"'3. Budget - Plan de travail'!E49","v":0},{"$f":"'3. Budget - Plan de travail'!F49","v":0},{"$f":"'3. Budget - Plan de travail'!G49","v":0},null,null,null,0]
[{"$f":"'3. Budget - Plan de travail'!A50:C50","v":"[Ajouter la description de la tâche ici]"},null,null,{"$f":"'3. Budget - Plan de travail'!D50","v":0},{"$f":"'3. Budget - Plan de travail'!E50","v":0},{"$f":"'3. Budget - Plan de travail'!F50","v":0},{"$f":"'3. Budget - Plan de travail'!G50","v":0},null,null,null,0]
[{"$f":"'3. Budget - Plan de travail'!A51:C51","v":"[Ajouter la description de la tâche ici]"},null,null,{"$f":"'3. Budget - Plan de travail'!D51","v":0},{"$f":"'3. Budget - Plan de travail'!E51","v":0},{"$f":"'3. Budget - Plan de travail'!F51","v":0},{"$f":"'3. Budget - Plan de travail'!G51","v":0},null,null,null,0]
[{"$f":"'3. Budget - Plan de travail'!A52:C52","v":"[Ajouter la description de la tâche ici]"},null,null,{"$f":"'3. Budget - Plan de travail'!D52","v":0},{"$f":"'3. Budget - Plan de travail'!E52","v":0},{"$f":"'3. Budget - Plan de travail'!F52","v":0},{"$f":"'3. Budget - Plan de travail'!G52","v":0},null,null,null,0]
[{"$f":"'3. Budget - Plan de travail'!A53:C53","v":"[Ajouter la description de la tâche ici]"},null,null,{"$f":"'3. Budget - Plan de travail'!D53","v":0},{"$f":"'3. Budget - Plan de travail'!E53","v":0},{"$f":"'3. Budget - Plan de travail'!F53","v":0},{"$f":"'3. Budget - Plan de travail'!G53","v":0},null,null,null,0]
[{"$f":"'3. Budget - Plan de travail'!A54:C54","v":"[Ajouter la description de la tâche ici]"},null,null,{"$f":"'3. Budget - Plan de travail'!D54","v":0},{"$f":"'3. Budget - Plan de travail'!E54","v":0},{"$f":"'3. Budget - Plan de travail'!F54","v":0},{"$f":"'3. Budget - Plan de travail'!G54","v":0},null,null,null,0]
[{"$f":"'3. Budget - Plan de travail'!A55:C55","v":"[Ajouter la description de la tâche ici]"},null,null,{"$f":"'3. Budget - Plan de travail'!D55","v":0},{"$f":"'3. Budget - Plan de travail'!E55","v":0},{"$f":"'3. Budget - Plan de travail'!F55","v":0},{"$f":"'3. Budget - Plan de travail'!G55","v":0},null,null,null,0]
[{"$f":"'3. Budget - Plan de travail'!A56:C56","v":"[Ajouter la description de la tâche ici]"},null,null,{"$f":"'3. Budget - Plan de travail'!D56","v":0},{"$f":"'3. Budget - Plan de travail'!E56","v":0},{"$f":"'3. Budget - Plan de travail'!F56","v":0},{"$f":"'3. Budget - Plan de travail'!G56","v":0},null,null,null,0]
[{"$f":"'3. Budget - Plan de travail'!A57:C57","v":"[Ajouter la description de la tâche ici]"},null,null,{"$f":"'3. Budget - Plan de travail'!D57","v":0},{"$f":"'3. Budget - Plan de travail'!E57","v":0},{"$f":"'3. Budget - Plan de travail'!F57","v":0},{"$f":"'3. Budget - Plan de travail'!G57","v":0},null,null,null,0]
[{"$f":"'3. Budget - Plan de travail'!A58:C58","v":"[Ajouter la description de la tâche ici]"},null,null,{"$f":"'3. Budget - Plan de travail'!D58","v":0},{"$f":"'3. Budget - Plan de travail'!E58","v":0},{"$f":"'3. Budget - Plan de travail'!F58","v":0},{"$f":"'3. Budget - Plan de travail'!G58","v":0},null,null,null,0]
[{"$f":"'3. Budget - Plan de travail'!A59:C59","v":"[Ajouter la description de la tâche ici]"},null,null,{"$f":"'3. Budget - Plan de travail'!D59","v":0},{"$f":"'3. Budget - Plan de travail'!E59","v":0},{"$f":"'3. Budget - Plan de travail'!F59","v":0},{"$f":"'3. Budget - Plan de travail'!G59","v":0},null,null,null,0]
[{"$f":"'3. Budget - Plan de travail'!A60:C60","v":"[Ajouter la description de la tâche ici]"},null,null,{"$f":"'3. Budget - Plan de travail'!D60","v":0},{"$f":"'3. Budget - Plan de travail'!E60","v":0},{"$f":"'3. Budget - Plan de travail'!F60","v":0},{"$f":"'3. Budget - Plan de travail'!G60","v":0},null,null,null,0]
["Sous-total",null,null,null,{"$f":"'3. Budget - Plan de travail'!E61","v":0},{"$f":"'3. Budget - Plan de travail'!F61","v":0},{"$f":"'3. Budget - Plan de travail'!G61","v":0},null,{"$f":"SUM(I46:I61)","v":0},{"$f":"SUM(J46:J61)","v":0},{"$f":"SUM(K46:K61)","v":0}]
[{"$f":"'3. Budget - Plan de travail'!A62","v":"Étape 4 : Veuillez indiquer votre quatrième étape (au besoin)"},{"$f":"'3. Budget - Plan de travail'!B62","v":"mm/aaaa"},{"$f":"'3. Budget - Plan de travail'!C62","v":"mm/aaaa"}]
[{"$f":"'3. Budget - Plan de travail'!A63","v":"Description de l'étape : [Dans cette case, veuillez décrire l'étape ou le livrable principal qui témoigne de l'achèvement de cette étape]"}]
[{"$f":"'3. Budget - Plan de travail'!A64:C64","v":"[Ajouter la description de la tâche ici]"},null,null,{"$f":"'3. Budget - Plan de travail'!D64","v":0},{"$f":"'3. Budget - Plan de travail'!E64","v":0},{"$f":"'3. Budget - Plan de travail'!F64","v":0},{"$f":"'3. Budget - Plan de travail'!G64","v":0},null,null,null,{"$f":"I65+J65","v":0}]
[{"$f":"'3. Budget - Plan de travail'!A65:C65","v":"[Ajouter la description de la tâche ici]"},null,null,{"$f":"'3. Budget - Plan de travail'!D65","v":0},{"$f":"'3. Budget - Plan de travail'!E65","v":0},{"$f":"'3. Budget - Plan de travail'!F65","v":0},{"$f":"'3. Budget - Plan de travail'!G65","v":0},null,null,null,{"$f":"I66+J66","v":0}]
[{"$f":"'3. Budget - Plan de travail'!A66:C66","v":"[Ajouter la description de la tâche ici]"},null,null,{"$f":"'3. Budget - Plan de travail'!D66","v":0},{"$f":"'3. Budget - Plan de travail'!E66","v":0},{"$f":"'3. Budget - Plan de travail'!F66","v":0},{"$f":"'3. Budget - Plan de travail'!G66","v":0},null,null,null,0]
[{"$f":"'3. Budget - Plan de travail'!A67:C67","v":"[Ajouter la description de la tâche ici]"},null,null,{"$f":"'3. Budget - Plan de travail'!D67","v":0},{"$f":"'3. Budget - Plan de travail'!E67","v":0},{"$f":"'3. Budget - Plan de travail'!F67","v":0},{"$f":"'3. Budget - Plan de travail'!G67","v":0},null,null,null,0]
[{"$f":"'3. Budget - Plan de travail'!A68:C68","v":"[Ajouter la description de la tâche ici]"},null,null,{"$f":"'3. Budget - Plan de travail'!D68","v":0},{"$f":"'3. Budget - Plan de travail'!E68","v":0},{"$f":"'3. Budget - Plan de travail'!F68","v":0},{"$f":"'3. Budget - Plan de travail'!G68","v":0},null,null,null,0]
[{"$f":"'3. Budget - Plan de travail'!A69:C69","v":"[Ajouter la description de la tâche ici]"},null,null,{"$f":"'3. Budget - Plan de travail'!D69","v":0},{"$f":"'3. Budget - Plan de travail'!E69","v":0},{"$f":"'3. Budget - Plan de travail'!F69","v":0},{"$f":"'3. Budget - Plan de travail'!G69","v":0},null,null,null,0]
[{"$f":"'3. Budget - Plan de travail'!A70:C70","v":"[Ajouter la description de la tâche ici]"},null,null,{"$f":"'3. Budget - Plan de travail'!D70","v":0},{"$f":"'3. Budget - Plan de travail'!E70","v":0},{"$f":"'3. Budget - Plan de travail'!F70","v":0},{"$f":"'3. Budget - Plan de travail'!G70","v":0},null,null,null,0]
[{"$f":"'3. Budget - Plan de travail'!A71:C71","v":"[Ajouter la description de la tâche ici]"},null,null,{"$f":"'3. Budget - Plan de travail'!D71","v":0},{"$f":"'3. Budget - Plan de travail'!E71","v":0},{"$f":"'3. Budget - Plan de travail'!F71","v":0},{"$f":"'3. Budget - Plan de travail'!G71","v":0},null,null,null,0]
[{"$f":"'3. Budget - Plan de travail'!A72:C72","v":"[Ajouter la description de la tâche ici]"},null,null,{"$f":"'3. Budget - Plan de travail'!D72","v":0},{"$f":"'3. Budget - Plan de travail'!E72","v":0},{"$f":"'3. Budget - Plan de travail'!F72","v":0},{"$f":"'3. Budget - Plan de travail'!G72","v":0},null,null,null,0]
[{"$f":"'3. Budget - Plan de travail'!A73:C73","v":"[Ajouter la description de la tâche ici]"},null,null,{"$f":"'3. Budget - Plan de travail'!D73","v":0},{"$f":"'3. Budget - Plan de travail'!E73","v":0},{"$f":"'3. Budget - Plan de travail'!F73","v":0},{"$f":"'3. Budget - Plan de travail'!G73","v":0},null,null,null,0]
[{"$f":"'3. Budget - Plan de travail'!A74:C74","v":"[Ajouter la description de la tâche ici]"},null,null,{"$f":"'3. Budget - Plan de travail'!D74","v":0},{"$f":"'3. Budget - Plan de travail'!E74","v":0},{"$f":"'3. Budget - Plan de travail'!F74","v":0},{"$f":"'3. Budget - Plan de travail'!G74","v":0},null,null,null,0]
[{"$f":"'3. Budget - Plan de travail'!A75:C75","v":"[Ajouter la description de la tâche ici]"},null,null,{"$f":"'3. Budget - Plan de travail'!D75","v":0},{"$f":"'3. Budget - Plan de travail'!E75","v":0},{"$f":"'3. Budget - Plan de travail'!F75","v":0},{"$f":"'3. Budget - Plan de travail'!G75","v":0},null,null,null,0]
[{"$f":"'3. Budget - Plan de travail'!A76:C76","v":"[Ajouter la description de la tâche ici]"},null,null,{"$f":"'3. Budget - Plan de travail'!D76","v":0},{"$f":"'3. Budget - Plan de travail'!E76","v":0},{"$f":"'3. Budget - Plan de travail'!F76","v":0},{"$f":"'3. Budget - Plan de travail'!G76","v":0},null,null,null,0]
[{"$f":"'3. Budget - Plan de travail'!A77:C77","v":"[Ajouter la description de la tâche ici]"},null,null,{"$f":"'3. Budget - Plan de travail'!D77","v":0},{"$f":"'3. Budget - Plan de travail'!E77","v":0},{"$f":"'3. Budget - Plan de travail'!F77","v":0},{"$f":"'3. Budget - Plan de travail'!G77","v":0},null,null,null,0]
[{"$f":"'3. Budget - Plan de travail'!A78:C78","v":"[Ajouter la description de la tâche ici]"},null,null,{"$f":"'3. Budget - Plan de travail'!D78","v":0},{"$f":"'3. Budget - Plan de travail'!E78","v":0},{"$f":"'3. Budget - Plan de travail'!F78","v":0},{"$f":"'3. Budget - Plan de travail'!G78","v":0},null,null,null,0]
[{"$f":"'3. Budget - Plan de travail'!A79:C79","v":"[Ajouter la description de la tâche ici]"},null,null,{"$f":"'3. Budget - Plan de travail'!D79","v":0},{"$f":"'3. Budget - Plan de travail'!E79","v":0},{"$f":"'3. Budget - Plan de travail'!F79","v":0},{"$f":"'3. Budget - Plan de travail'!G79","v":0},null,null,null,0]
["Sous-total",null,null,null,{"$f":"'3. Budget - Plan de travail'!E80","v":0},{"$f":"'3. Budget - Plan de travail'!F80","v":0},{"$f":"'3. Budget - Plan de travail'!G80","v":0},null,{"$f":"SUM(I65:I80)","v":0},{"$f":"SUM(J65:J80)","v":0},{"$f":"SUM(K65:K80)","v":0}]
[{"$f":"'3. Budget - Plan de travail'!A81","v":"Étape 5 : Veuillez indiquer votre cinquième étape (au besoin)"},{"$f":"'3. Budget - Plan de travail'!B81","v":"mm/aaaa"},{"$f":"'3. Budget - Plan de travail'!C81","v":"mm/aaaa"}]
[{"$f":"'3. Budget - Plan de travail'!A82","v":"Description de l'étape : [Dans cette case, veuillez décrire l'étape ou le livrable principal qui témoigne de l'achèvement de cette étape]"}]
[{"$f":"'3. Budget - Plan de travail'!A83:C83","v":"[Ajouter la description de la tâche ici]"},null,null,{"$f":"'3. Budget - Plan de travail'!D83","v":0},{"$f":"'3. Budget - Plan de travail'!E83","v":0},{"$f":"'3. Budget - Plan de travail'!F83","v":0},{"$f":"'3. Budget - Plan de travail'!G83","v":0},null,null,null,{"$f":"I84+J84","v":0}]
[{"$f":"'3. Budget - Plan de travail'!A84:C84","v":"[Ajouter la description de la tâche ici]"},null,null,{"$f":"'3. Budget - Plan de travail'!D84","v":0},{"$f":"'3. Budget - Plan de travail'!E84","v":0},{"$f":"'3. Budget - Plan de travail'!F84","v":0},{"$f":"'3. Budget - Plan de travail'!G84","v":0},null,null,null,{"$f":"I85+J85","v":0}]
[{"$f":"'3. Budget - Plan de travail'!A85:C85","v":"[Ajouter la description de la tâche ici]"},null,null,{"$f":"'3. Budget - Plan de travail'!D85","v":0},{"$f":"'3. Budget - Plan de travail'!E85","v":0},{"$f":"'3. Budget - Plan de travail'!F85","v":0},{"$f":"'3. Budget - Plan de travail'!G85","v":0},null,null,null,0]
[{"$f":"'3. Budget - Plan de travail'!A86:C86","v":"[Ajouter la description de la tâche ici]"},null,null,{"$f":"'3. Budget - Plan de travail'!D86","v":0},{"$f":"'3. Budget - Plan de travail'!E86","v":0},{"$f":"'3. Budget - Plan de travail'!F86","v":0},{"$f":"'3. Budget - Plan de travail'!G86","v":0},null,null,null,0]
[{"$f":"'3. Budget - Plan de travail'!A87:C87","v":"[Ajouter la description de la tâche ici]"},null,null,{"$f":"'3. Budget - Plan de travail'!D87","v":0},{"$f":"'3. Budget - Plan de travail'!E87","v":0},{"$f":"'3. Budget - Plan de travail'!F87","v":0},{"$f":"'3. Budget - Plan de travail'!G87","v":0},null,null,null,0]
[{"$f":"'3. Budget - Plan de travail'!A88:C88","v":"[Ajouter la description de la tâche ici]"},null,null,{"$f":"'3. Budget - Plan de travail'!D88","v":0},{"$f":"'3. Budget - Plan de travail'!E88","v":0},{"$f":"'3. Budget - Plan de travail'!F88","v":0},{"$f":"'3. Budget - Plan de travail'!G88","v":0},null,null,null,0]
[{"$f":"'3. Budget - Plan de travail'!A89:C89","v":"[Ajouter la description de la tâche ici]"},null,null,{"$f":"'3. Budget - Plan de travail'!D89","v":0},{"$f":"'3. Budget - Plan de travail'!E89","v":0},{"$f":"'3. Budget - Plan de travail'!F89","v":0},{"$f":"'3. Budget - Plan de travail'!G89","v":0},null,null,null,0]
[{"$f":"'3. Budget - Plan de travail'!A90:C90","v":"[Ajouter la description de la tâche ici]"},null,null,{"$f":"'3. Budget - Plan de travail'!D90","v":0},{"$f":"'3. Budget - Plan de travail'!E90","v":0},{"$f":"'3. Budget - Plan de travail'!F90","v":0},{"$f":"'3. Budget - Plan de travail'!G90","v":0},null,null,null,0]
[{"$f":"'3. Budget - Plan de travail'!A91:C91","v":"[Ajouter la description de la tâche ici]"},null,null,{"$f":"'3. Budget - Plan de travail'!D91","v":0},{"$f":"'3. Budget - Plan de travail'!E91","v":0},{"$f":"'3. Budget - Plan de travail'!F91","v":0},{"$f":"'3. Budget - Plan de travail'!G91","v":0},null,null,null,0]
[{"$f":"'3. Budget - Plan de travail'!A92:C92","v":"[Ajouter la description de la tâche ici]"},null,null,{"$f":"'3. Budget - Plan de travail'!D92","v":0},{"$f":"'3. Budget - Plan de travail'!E92","v":0},{"$f":"'3. Budget - Plan de travail'!F92","v":0},{"$f":"'3. Budget - Plan de travail'!G92","v":0},null,null,null,0]
[{"$f":"'3. Budget - Plan de travail'!A93:C93","v":"[Ajouter la description de la tâche ici]"},null,null,{"$f":"'3. Budget - Plan de travail'!D93","v":0},{"$f":"'3. Budget - Plan de travail'!E93","v":0},{"$f":"'3. Budget - Plan de travail'!F93","v":0},{"$f":"'3. Budget - Plan de travail'!G93","v":0},null,null,null,0]
[{"$f":"'3. Budget - Plan de travail'!A94:C94","v":"[Ajouter la description de la tâche ici]"},null,null,{"$f":"'3. Budget - Plan de travail'!D94","v":0},{"$f":"'3. Budget - Plan de travail'!E94","v":0},{"$f":"'3. Budget - Plan de travail'!F94","v":0},{"$f":"'3. Budget - Plan de travail'!G94","v":0},null,null,null,0]
[{"$f":"'3. Budget - Plan de travail'!A95:C95","v":"[Ajouter la description de la tâche ici]"},null,null,{"$f":"'3. Budget - Plan de travail'!D95","v":0},{"$f":"'3. Budget - Plan de travail'!E95","v":0},{"$f":"'3. Budget - Plan de travail'!F95","v":0},{"$f":"'3. Budget - Plan de travail'!G95","v":0},null,null,null,0]
[{"$f":"'3. Budget - Plan de travail'!A96:C96","v":"[Ajouter la description de la tâche ici]"},null,null,{"$f":"'3. Budget - Plan de travail'!D96","v":0},{"$f":"'3. Budget - Plan de travail'!E96","v":0},{"$f":"'3. Budget - Plan de travail'!F96","v":0},{"$f":"'3. Budget - Plan de travail'!G96","v":0},null,null,null,0]
[{"$f":"'3. Budget - Plan de travail'!A97:C97","v":"[Ajouter la description de la tâche ici]"},null,null,{"$f":"'3. Budget - Plan de travail'!D97","v":0},{"$f":"'3. Budget - Plan de travail'!E97","v":0},{"$f":"'3. Budget - Plan de travail'!F97","v":0},{"$f":"'3. Budget - Plan de travail'!G97","v":0},null,null,null,0]
[{"$f":"'3. Budget - Plan de travail'!A98:C98","v":"[Ajouter la description de la tâche ici]"},null,null,{"$f":"'3. Budget - Plan de travail'!D98","v":0},{"$f":"'3. Budget - Plan de travail'!E98","v":0},{"$f":"'3. Budget - Plan de travail'!F98","v":0},{"$f":"'3. Budget - Plan de travail'!G98","v":0},null,null,null,0]
["Sous-total",null,null,null,{"$f":"'3. Budget - Plan de travail'!E99","v":0},{"$f":"'3. Budget - Plan de travail'!F99","v":0},{"$f":"'3. Budget - Plan de travail'!G99","v":0},null,{"$f":"SUM(I84:I99)","v":0},{"$f":"SUM(J84:J99)","v":0},{"$f":"SUM(K84:K99)","v":0}]
[{"$f":"'3. Budget - Plan de travail'!A100","v":"Étape 6 : Veuillez indiquer votre sixième étape (au besoin)"},{"$f":"'3. Budget - Plan de travail'!B100","v":"mm/aaaa"},{"$f":"'3. Budget - Plan de travail'!C100","v":"mm/aaaa"}]
[{"$f":"'3. Budget - Plan de travail'!A101","v":"Description de l'étape : [Dans cette case, veuillez décrire l'étape ou le livrable principal qui témoigne de l'achèvement de cette étape]"}]
[{"$f":"'3. Budget - Plan de travail'!A102:C102","v":"[Ajouter la description de la tâche ici]"},null,null,{"$f":"'3. Budget - Plan de travail'!D102","v":0},{"$f":"'3. Budget - Plan de travail'!E102","v":0},{"$f":"'3. Budget - Plan de travail'!F102","v":0},{"$f":"'3. Budget - Plan de travail'!G102","v":0},null,null,null,{"$f":"I103+J103","v":0}]
[{"$f":"'3. Budget - Plan de travail'!A103:C103","v":"[Ajouter la description de la tâche ici]"},null,null,{"$f":"'3. Budget - Plan de travail'!D103","v":0},{"$f":"'3. Budget - Plan de travail'!E103","v":0},{"$f":"'3. Budget - Plan de travail'!F103","v":0},{"$f":"'3. Budget - Plan de travail'!G103","v":0},null,null,null,{"$f":"I104+J104","v":0}]
[{"$f":"'3. Budget - Plan de travail'!A104:C104","v":"[Ajouter la description de la tâche ici]"},null,null,{"$f":"'3. Budget - Plan de travail'!D104","v":0},{"$f":"'3. Budget - Plan de travail'!E104","v":0},{"$f":"'3. Budget - Plan de travail'!F104","v":0},{"$f":"'3. Budget - Plan de travail'!G104","v":0},null,null,null,0]
[{"$f":"'3. Budget - Plan de travail'!A105:C105","v":"[Ajouter la description de la tâche ici]"},null,null,{"$f":"'3. Budget - Plan de travail'!D105","v":0},{"$f":"'3. Budget - Plan de travail'!E105","v":0},{"$f":"'3. Budget - Plan de travail'!F105","v":0},{"$f":"'3. Budget - Plan de travail'!G105","v":0},null,null,null,0]
[{"$f":"'3. Budget - Plan de travail'!A106:C106","v":"[Ajouter la description de la tâche ici]"},null,null,{"$f":"'3. Budget - Plan de travail'!D106","v":0},{"$f":"'3. Budget - Plan de travail'!E106","v":0},{"$f":"'3. Budget - Plan de travail'!F106","v":0},{"$f":"'3. Budget - Plan de travail'!G106","v":0},null,null,null,0]
[{"$f":"'3. Budget - Plan de travail'!A107:C107","v":"[Ajouter la description de la tâche ici]"},null,null,{"$f":"'3. Budget - Plan de travail'!D107","v":0},{"$f":"'3. Budget - Plan de travail'!E107","v":0},{"$f":"'3. Budget - Plan de travail'!F107","v":0},{"$f":"'3. Budget - Plan de travail'!G107","v":0},null,null,null,0]
[{"$f":"'3. Budget - Plan de travail'!A108:C108","v":"[Ajouter la description de la tâche ici]"},null,null,{"$f":"'3. Budget - Plan de travail'!D108","v":0},{"$f":"'3. Budget - Plan de travail'!E108","v":0},{"$f":"'3. Budget - Plan de travail'!F108","v":0},{"$f":"'3. Budget - Plan de travail'!G108","v":0},null,null,null,0]
[{"$f":"'3. Budget - Plan de travail'!A109:C109","v":"[Ajouter la description de la tâche ici]"},null,null,{"$f":"'3. Budget - Plan de travail'!D109","v":0},{"$f":"'3. Budget - Plan de travail'!E109","v":0},{"$f":"'3. Budget - Plan de travail'!F109","v":0},{"$f":"'3. Budget - Plan de travail'!G109","v":0},null,null,null,0]
[{"$f":"'3. Budget - Plan de travail'!A110:C110","v":"[Ajouter la description de la tâche ici]"},null,null,{"$f":"'3. Budget - Plan de travail'!D110","v":0},{"$f":"'3. Budget - Plan de travail'!E110","v":0},{"$f":"'3. Budget - Plan de travail'!F110","v":0},{"$f":"'3. Budget - Plan de travail'!G110","v":0},null,null,null,0]
[{"$f":"'3. Budget - Plan de travail'!A111:C111","v":"[Ajouter la description de la tâche ici]"},null,null,{"$f":"'3. Budget - Plan de travail'!D111","v":0},{"$f":"'3. Budget - Plan de travail'!E111","v":0},{"$f":"'3. Budget - Plan de travail'!F111","v":0},{"$f":"'3. Budget - Plan de travail'!G111","v":0},null,null,null,0]
[{"$f":"'3. Budget - Plan de travail'!A112:C112","v":"[Ajouter la description de la tâche ici]"},null,null,{"$f":"'3. Budget - Plan de travail'!D112","v":0},{"$f":"'3. Budget - Plan de travail'!E112","v":0},{"$f":"'3. Budget - Plan de travail'!F112","v":0},{"$f":"'3. Budget - Plan de travail'!G112","v":0},null,null,null,0]
[{"$f":"'3. Budget - Plan de travail'!A113:C113","v":"[Ajouter la description de la tâche ici]"},null,null,{"$f":"'3. Budget - Plan de travail'!D113","v":0},{"$f":"'3. Budget - Plan de travail'!E113","v":0},{"$f":"'3. Budget - Plan de travail'!F113","v":0},{"$f":"'3. Budget - Plan de travail'!G113","v":0},null,null,null,0]
[{"$f":"'3. Budget - Plan de travail'!A114:C114","v":"[Ajouter la description de la tâche ici]"},null,null,{"$f":"'3. Budget - Plan de travail'!D114","v":0},{"$f":"'3. Budget - Plan de travail'!E114","v":0},{"$f":"'3. Budget - Plan de travail'!F114","v":0},{"$f":"'3. Budget - Plan de travail'!G114","v":0},null,null,null,0]
[{"$f":"'3. Budget - Plan de travail'!A115:C115","v":"[Ajouter la description de la tâche ici]"},null,null,{"$f":"'3. Budget - Plan de travail'!D115","v":0},{"$f":"'3. Budget - Plan de travail'!E115","v":0},{"$f":"'3. Budget - Plan de travail'!F115","v":0},{"$f":"'3. Budget - Plan de travail'!G115","v":0},null,null,null,0]
[{"$f":"'3. Budget - Plan de travail'!A116:C116","v":"[Ajouter la description de la tâche ici]"},null,null,{"$f":"'3. Budget - Plan de travail'!D116","v":0},{"$f":"'3. Budget - Plan de travail'!E116","v":0},{"$f":"'3. Budget - Plan de travail'!F116","v":0},{"$f":"'3. Budget - Plan de travail'!G116","v":0},null,null,null,0]
[{"$f":"'3. Budget - Plan de travail'!A117:C117","v":"[Ajouter la description de la tâche ici]"},null,null,{"$f":"'3. Budget - Plan de travail'!D117","v":0},{"$f":"'3. Budget - Plan de travail'!E117","v":0},{"$f":"'3. Budget - Plan de travail'!F117","v":0},{"$f":"'3. Budget - Plan de travail'!G117","v":0},null,null,null,0]
["Sous-total",null,null,null,{"$f":"'3. Budget - Plan de travail'!E118","v":0},{"$f":"'3. Budget - Plan de travail'!F118","v":0},{"$f":"'3. Budget - Plan de travail'!G118","v":0},null,{"$f":"SUM(I103:I118)","v":0},{"$f":"SUM(J103:J118)","v":0},{"$f":"SUM(K103:K118)","v":0}]
["Total",null,null,null,{"$f":"'3. Budget - Plan de travail'!E119","v":0},{"$f":"'3. Budget - Plan de travail'!F119","v":0},{"$f":"'3. Budget - Plan de travail'!G121","v":0},null,{"$f":"SUM(I119+I100+I81+I62+I43+I24)","v":0},{"$f":"SUM(J119+J100+J81+J62+J43+J24)","v":0},{"$f":"SUM(K119+K100+K81+K62+K43+K24)","v":0}]
[]
["RÉSERVÉ À L'USAGE DU FMV  ̶  SECTION DES CONTRIBUTIONS",null,null,null,null," X versements actuels et antérieurs","Montant",null,"Total des coûts réels admissibles",null,{"$f":"I120","v":0}]
["Versement no 1 conformément aux dossiers du FMV",null,null,null,null,null,null,null,"Total de la subvention disponible",null,{"$f":"MIN(G127,K122/2-G126)","v":0}]
["Versement no 2 conformément aux dossiers du FMV"]
["Versement no 3 conformément aux dossiers du FMV"]
["Montant total versé à ce jour conformément aux dossiers du FMV"]
["Montant total disponible pour le versement (montant figurant dans la convention de subvention moins le montant total versé à ce jour)",null,null,null,null,null,{"$f":"SUMIF((F123:F125),\"=x\",G123:G125)-G126","v":0}]
[]
["(1) Pre-application"]
["(2) Administrative "]
["(3) Advertising"]
["(4) Capital Expenditures"]
["(5) Equipment rental"]
["(6) In-Kind"]
["(7) Meetings and public gatherings"]
["(8) Services"]
["(9) Staff remuneration"]
["(10) Supplies and materials"]
["(11) Transportation, shiping and courier charges"]
["(12) Travel and accommodation"]
["(13) Taxes"]